bitfinex/quotes_SOLUSD_20241031
["timestamp","ask_amount","ask_price","bid_price","bid_amount"]
[1730363676939,5.7484,173.96,173.87,16.08191896]
[1730363676940,16.08191896,173.92,173.87,16.08191896]
[1730363677464,16.08191896,173.92,173.88,39.85880296]
[1730363677775,16.08191896,173.93,173.89,23.776884]
[1730363678259,16.08191896,173.93,173.89,39.85880296]
[1730363678582,16.08191896,173.95,173.91,23.776884]
[1730363678767,21.83091896,173.95,173.91,23.776884]
[1730363679563,16.08191896,173.94,173.9,23.776884]
[1730363679758,16.08191896,173.93,173.9,23.776884]
[1730363680351,16.08191896,173.92,173.87,16.08191896]
[1730363680661,16.08191896,173.92,173.88,23.776884]
[1730363681162,16.08191896,173.93,173.88,16.08191896]
[1730363681402,16.08191896,173.93,173.89,23.776884]
[1730363682272,5.7496,173.93,173.89,16.08191896]
[1730363683059,21.83151896,173.93,173.89,16.08191896]
[1730363684465,16.08191896,173.91,173.87,23.776884]
[1730363684666,16.08191896,173.92,173.87,39.85880296]
[1730363686166,21.83171896,173.92,173.87,39.85880296]
[1730363686540,16.08191896,173.91,173.87,39.85880296]
[1730363686744,21.83171896,173.92,173.87,39.85880296]
[1730363687148,16.08191896,173.91,173.87,23.776884]
[1730363687565,16.08191896,173.92,173.87,39.85880296]
[1730363688084,16.08191896,173.91,173.87,23.776884]
[1730363688502,21.83211896,173.91,173.87,23.776884]
[1730363688658,5.7502,173.91,173.87,39.85880296]
[1730363690477,10.2920175,173.92,173.87,34.0689015]
[1730363690661,10.2920175,173.9,173.85,10.2920175]
[1730363690857,10.2920175,173.89,173.85,23.776884]
[1730363691669,10.2920175,173.87,173.84,0.86277277]
[1730363691974,10.2920175,173.86,173.84,0.86277277]
[1730363692759,10.2920175,173.85,173.78,14.3855]
[1730363692885,10.2920175,173.82,173.78,14.3855]
[1730363693379,15.2107,173.87,173.74,21.9333]
[1730363693380,10.2920175,173.81,173.76,10.2920175]
[1730363694558,10.2920175,173.81,173.76,16.0470175]
[1730363694880,16.0452175,173.82,173.77,34.0689015]
[1730363696401,16.0452175,173.82,173.77,23.776884]
[1730363696883,16.0452175,173.82,173.77,39.8235015]
[1730363697059,5.7532,173.82,173.78,10.2920175]
[1730363697874,10.2920175,173.82,173.77,39.8235015]
[1730363698386,10.2920175,173.82,173.77,34.0689015]
[1730363698682,10.2920175,173.81,173.77,23.776884]
[1730363699196,10.2920175,173.82,173.77,34.0689015]
[1730363699790,10.2920175,173.81,173.77,23.776884]
[1730363702603,16.0445175,173.84,173.79,10.2920175]
[1730363705263,5.7525,173.84,173.78,10.2920175]
[1730363705462,10.2920175,173.83,173.79,23.776884]
[1730363705986,10.2920175,173.83,173.78,23.776884]
[1730363706596,10.2920175,173.83,173.78,34.0689015]
[1730363706767,10.2920175,173.83,173.79,23.776884]
[1730363707376,16.0445175,173.84,173.79,23.776884]
[1730363707696,10.2920175,173.81,173.76,10.2920175]
[1730363708085,10.2920175,173.8,173.75,16.0471175]
[1730363708288,10.2920175,173.79,173.75,20.0]
[1730363708907,10.2920175,173.81,173.76,10.2920175]
[1730363709518,10.2920175,173.82,173.77,10.2920175]
[1730363710803,16.0447175,173.83,173.77,10.2920175]
[1730363711101,16.0447175,173.83,173.77,23.776884]
[1730363711102,10.2920175,173.81,173.77,23.776884]
[1730363711304,10.2920175,173.82,173.77,34.0689015]
[1730363711900,16.0453175,173.82,173.77,34.0689015]
[1730363712080,10.2920175,173.81,173.77,23.776884]
[1730363713409,16.0454175,173.81,173.77,23.776884]
[1730363714283,10.2920175,173.82,173.77,34.0689015]
[1730363715999,5.7534,173.81,173.77,34.0689015]
[1730363719118,10.2920175,173.83,173.77,34.0689015]
[1730363720318,10.2920175,173.84,173.79,10.2920175]
[1730363720608,10.2920175,173.83,173.78,10.2920175]
[1730363720816,10.2920175,173.83,173.79,23.776884]
[1730363721395,16.0448175,173.83,173.79,23.776884]
[1730363721890,10.2920175,173.82,173.78,23.776884]
[1730363722099,10.2920175,173.82,173.76,10.2920175]
[1730363722313,10.2920175,173.8,173.77,23.776884]
[1730363723218,5.7535,173.81,173.77,23.776884]
[1730363724011,10.2920175,173.8,173.75,20.0]
[1730363724223,10.2920175,173.79,173.75,20.0]
[1730363724590,10.2920175,173.76,173.7,32.4964175]
[1730363724801,10.2920175,173.76,173.7,30.4412175]
[1730363725204,10.2920175,173.76,173.71,10.2920175]
[1730363725405,16.0470175,173.76,173.71,10.2920175]
[1730363725704,16.0470175,173.76,173.71,16.0487175]
[1730363726111,16.0470175,173.76,173.72,23.776884]
[1730363726294,10.2920175,173.75,173.7,14.3922]
[1730363726494,10.2920175,173.74,173.7,14.3922]
[1730363727396,10.2920175,173.75,173.7,14.3922]
[1730363727696,10.2920175,173.75,173.71,23.776884]
[1730363728607,10.2920175,173.74,173.71,23.776884]
[1730363728803,16.0478175,173.74,173.68,10.2920175]
[1730363729021,10.2920175,173.72,173.67,16.0497175]
[1730363729412,10.2920175,173.71,173.66,10.2920175]
[1730363729919,10.2920175,173.7,173.65,30.4471175]
[1730363730604,10.2920175,173.7,173.65,24.6886175]
[1730363730808,10.2920175,173.69,173.65,14.3966]
[1730363731130,10.2920175,173.7,173.66,23.776884]
[1730363733027,10.2920175,173.71,173.66,39.8271015]
[1730363733330,10.2920175,173.72,173.67,10.2920175]
[1730363734234,16.0484175,173.72,173.67,10.2920175]
[1730363734804,10.2920175,173.71,173.66,39.8271015]
[1730363735001,10.2920175,173.73,173.68,10.2920175]
[1730363735209,10.2920175,173.73,173.69,23.776884]
[1730363735819,10.2920175,173.73,173.68,23.776884]
[1730363736001,10.2920175,173.73,173.67,23.776884]
[1730363736207,10.2920175,173.76,173.71,23.776884]
[1730363736411,10.2920175,173.76,173.71,34.0689015]
[1730363736812,5.7547,173.77,173.72,10.2920175]
[1730363737002,5.7547,173.77,173.73,10.2920175]
[1730363737509,16.0467175,173.77,173.72,10.2920175]
[1730363738952,10.2920175,173.77,173.72,10.2920175]
[1730363739235,10.2920175,173.78,173.73,10.2920175]
[1730363739725,10.2920175,173.77,173.72,10.2920175]
[1730363740333,10.2920175,173.78,173.73,10.2920175]
[1730363740535,10.26443201,173.78,173.73,10.2920175]
[1730363741143,16.01893201,173.78,173.73,10.2920175]
[1730363741833,10.2920175,173.79,173.74,10.2920175]
[1730363742240,10.2920175,173.78,173.73,10.2920175]
[1730363742541,10.2920175,173.78,173.74,23.776884]
[1730363745041,10.2920175,173.77,173.72,10.2920175]
[1730363746055,10.2920175,173.8,173.75,10.2920175]
[1730363746228,15.5674,173.82,173.78,10.2920175]
[1730363746427,5.7534,173.81,173.78,10.2920175]
[1730363746627,16.0450175,173.83,173.78,10.2920175]
[1730363747043,5.753,173.83,173.79,10.2920175]
[1730363748046,16.0450175,173.83,173.78,10.2920175]
[1730363748553,10.2920175,173.81,173.76,10.2920175]
[1730363748756,10.2920175,173.8,173.76,23.776884]
[1730363750253,16.0457175,173.8,173.76,23.776884]
[1730363750558,16.0457175,173.8,173.75,10.2920175]
[1730363750757,10.2920175,173.79,173.74,10.2920175]
[1730363751644,16.0457175,173.8,173.74,10.2920175]
[1730363751960,10.2920175,173.77,173.73,23.776884]
[1730363752439,10.2920175,173.78,173.73,10.2920175]
[1730363752761,26.5775175,173.79,173.73,10.2920175]
[1730363752959,10.2920175,173.78,173.72,34.0689015]
[1730363753859,5.7547,173.77,173.72,34.0689015]
[1730363755965,10.2920175,173.77,173.72,34.0689015]
[1730363757465,10.2920175,173.74,173.68,24.6855175]
[1730363757764,10.2920175,173.73,173.68,24.6855175]
[1730363758540,10.2920175,173.74,173.69,10.2920175]
[1730363759464,16.0479175,173.74,173.69,10.2920175]
[1730363760271,10.2920175,173.76,173.72,10.2920175]
[1730363760578,10.2920175,173.76,173.71,10.2920175]
[1730363760871,10.2920175,173.76,173.72,23.776884]
[1730363761562,10.2920175,173.76,173.71,23.776884]
[1730363763164,16.0471175,173.76,173.71,23.776884]
[1730363763367,10.2920175,173.75,173.71,23.776884]
[1730363763563,16.0471175,173.76,173.71,23.776884]
[1730363763953,16.0466175,173.78,173.73,10.2920175]
[1730363764152,10.2920175,173.77,173.72,10.2920175]
[1730363764561,10.2920175,173.76,173.71,39.8255015]
[1730363764967,10.2920175,173.77,173.72,10.2920175]
[1730363765173,16.0464175,173.78,173.73,34.0689015]
[1730363766472,10.2920175,173.78,173.73,39.8247015]
[1730363766776,5.7541,173.79,173.75,10.2920175]
[1730363767274,5.7541,173.79,173.74,10.2920175]
[1730363767473,5.7541,173.79,173.75,23.776884]
[1730363767664,10.2920175,173.76,173.71,46.7100175]
[1730363767975,5.7541,173.79,173.64,28.8948]
[1730363767976,10.2920175,173.73,173.68,10.2920175]
[1730363768484,10.2920175,173.7,173.65,10.2920175]
[1730363768774,10.2920175,173.69,173.64,30.4486175]
[1730363769563,10.2920175,173.7,173.65,10.2920175]
[1730363769761,10.2920175,173.71,173.65,16.0506175]
[1730363770265,10.2920175,173.71,173.66,23.776884]
[1730363770972,10.2920175,173.69,173.64,14.3976]
[1730363771174,10.2920175,173.69,173.65,23.776884]
[1730363771486,10.2920175,173.69,173.64,23.776884]
[1730363772579,10.2920175,173.7,173.65,10.2920175]
[1730363774579,10.2920175,173.69,173.64,23.776884]
[1730363774881,10.2920175,173.67,173.63,23.776884]
[1730363775385,10.2920175,173.68,173.63,10.2920175]
[1730363775759,10.2920175,173.68,173.64,23.776884]
[1730363777586,10.2920175,173.67,173.64,23.776884]
[1730363778289,10.2920175,173.68,173.64,23.776884]
[1730363778885,16.0497175,173.68,173.64,23.776884]
[1730363779387,10.2920175,173.67,173.64,23.776884]
[1730363779563,16.0497175,173.68,173.64,23.776884]
[1730363780491,10.2920175,173.67,173.64,23.776884]
[1730363781274,10.2920175,173.68,173.64,23.776884]
[1730363782397,10.2920175,173.67,173.64,23.776884]
[1730363783094,10.2920175,173.68,173.64,23.776884]
[1730363783592,10.2920175,173.67,173.64,23.776884]
[1730363783987,10.2920175,173.67,173.62,24.6912175]
[1730363783988,10.2920175,173.67,173.62,20.1589]
[1730363784297,10.2920175,173.66,173.63,23.776884]
[1730363784473,10.2920175,173.64,173.61,0.86390682]
[1730363785167,10.2920175,173.63,173.61,0.86390682]
[1730363785366,16.0517175,173.62,173.61,0.86390682]
[1730363785790,16.0517175,173.62,173.56,16.0533175]
[1730363786001,10.2920175,173.61,173.56,16.0533175]
[1730363786207,10.2920175,173.59,173.56,5.7613]
[1730363786378,10.2920175,173.6,173.56,5.7613]
[1730363786573,10.2920175,173.59,173.55,5.7619]
[1730363786972,10.2920175,173.61,173.55,16.0539175]
[1730363787172,10.2920175,173.61,173.56,10.2920175]
[1730363787572,10.2920175,173.61,173.56,16.0536175]
[1730363787771,16.0520175,173.61,173.56,16.0536175]
[1730363788193,16.0520175,173.61,173.56,5.7616]
[1730363788495,10.2920175,173.6,173.56,5.7616]
[1730363789184,10.2920175,173.61,173.56,5.7616]
[1730363790282,16.0520175,173.61,173.56,5.7616]
[1730363797095,10.2920175,173.6,173.56,5.7616]
[1730363797722,10.2920175,173.6,173.56,23.776884]
[1730363797916,10.2920175,173.59,173.56,23.776884]
[1730363798220,10.2920175,173.59,173.55,23.776884]
[1730363798897,10.2920175,173.59,173.53,10.2920175]
[1730363799599,10.2920175,173.54,173.5,0.86442976]
[1730363802201,10.2920175,173.58,173.53,10.2920175]
[1730363804397,16.0532175,173.58,173.53,10.2920175]
[1730363807236,10.2920175,173.57,173.52,16.0549175]
[1730363808845,16.0534175,173.57,173.52,16.0549175]
[1730363809726,25.7221175,173.56,173.51,10.2920175]
[1730363809963,10.2920175,173.52,173.46,14.412]
[1730363810249,21.7915,173.56,173.46,14.412]
[1730363810250,10.2920175,173.5,173.46,14.412]
[1730363810622,10.2920175,173.51,173.46,14.412]
[1730363811352,10.2920175,173.49,173.43,16.0577175]
[1730363811727,10.2920175,173.49,173.44,10.2920175]
[1730363812237,16.0560175,173.49,173.44,10.2920175]
[1730363812550,16.0560175,173.49,173.43,16.0577175]
[1730363812734,5.7635,173.51,173.46,10.2920175]
[1730363813656,16.0555175,173.51,173.46,10.2920175]
[1730363815673,10.2920175,173.52,173.47,10.2920175]
[1730363816656,10.2920175,173.52,173.47,16.0566175]
[1730363818758,10.2920175,173.51,173.47,5.7646]
[1730363819861,21.7915,173.56,173.46,14.4125]
[1730363819862,10.2920175,173.49,173.46,14.4125]
[1730363820066,10.2920175,173.5,173.46,14.4125]
[1730363820686,10.2920175,173.5,173.46,20.1775]
[1730363820862,10.2920175,173.49,173.44,30.2920175]
[1730363821063,10.2920175,173.49,173.44,36.0573175]
[1730363821459,10.2920175,173.5,173.45,10.2920175]
[1730363821676,10.2920175,173.51,173.46,10.2920175]
[1730363822066,20.167,173.55,173.45,23.776884]
[1730363822067,10.2920175,173.52,173.47,10.2920175]
[1730363823085,10.2920175,173.52,173.47,16.0566175]
[1730363823466,10.2920175,173.51,173.47,5.7646]
[1730363823762,10.2920175,173.52,173.47,16.0566175]
[1730363824197,10.2920175,173.58,173.51,10.2920175]
[1730363824405,4.95352166,173.64,173.57,10.2920175]
[1730363824700,28.0505,173.66,173.54,43.902374]
[1730363824884,10.2920175,173.64,173.54,43.902374]
[1730363825195,10.2920175,173.65,173.6,10.2920175]
[1730363825361,16.1656,173.66,173.62,10.2920175]
[1730363825568,4.95352166,173.67,173.63,10.2920175]
[1730363825970,10.2920175,173.69,173.64,10.2920175]
[1730363826371,10.2920175,173.68,173.62,10.2920175]
[1730363826582,16.12739272,173.66,173.61,36.28669272]
[1730363827089,16.12739272,173.67,173.62,16.12739272]
[1730363829591,21.88529272,173.68,173.63,16.12739272]
[1730363830105,16.12739272,173.67,173.62,16.12739272]
[1730363831896,16.12739272,173.69,173.63,16.12739272]
[1730363832076,16.12739272,173.69,173.57,48.9714]
[1730363832077,21.88469272,173.69,173.64,16.12739272]
[1730363834596,21.88469272,173.69,173.63,16.12739272]
[1730363834905,16.12739272,173.68,173.63,16.12739272]
[1730363835509,16.12739272,173.66,173.61,30.52699272]
[1730363835684,16.12739272,173.66,173.6,16.12739272]
[1730363836008,16.12739272,173.66,173.61,16.12739272]
[1730363837009,16.12739272,173.66,173.62,16.12739272]
[1730363837010,5.7584,173.66,173.62,16.12739272]
[1730363837484,5.7584,173.66,173.59,59.90427672]
[1730363837485,16.12739272,173.64,173.59,59.90427672]
[1730363837690,16.12739272,173.65,173.6,16.12739272]
[1730363838004,5.7584,173.66,173.59,59.90427672]
[1730363838005,16.12739272,173.64,173.59,59.90427672]
[1730363838980,21.88639272,173.65,173.59,59.90427672]
[1730363839187,5.759,173.65,173.61,16.12739272]
[1730363840212,21.88569272,173.67,173.62,16.12739272]
[1730363840405,21.88439272,173.7,173.64,16.12739272]
[1730363840596,5.757,173.7,173.65,16.12739272]
[1730363840908,5.757,173.7,173.66,16.12739272]
[1730363842188,16.12739272,173.68,173.63,16.12739272]
[1730363842389,16.12739272,173.69,173.64,16.12739272]
[1730363843084,5.7577,173.68,173.64,16.12739272]
[1730363843387,5.7573,173.7,173.66,16.12739272]
[1730363843584,16.12739272,173.74,173.68,16.12739272]
[1730363843987,5.756,173.73,173.68,16.12739272]
[1730363844180,5.756,173.73,173.7,16.12739272]
[1730363844378,5.756,173.73,173.68,16.12739272]
[1730363844583,21.88339272,173.73,173.68,16.12739272]
[1730363848510,16.07151194,173.73,173.68,10.31551194]
[1730363851785,16.07121194,173.74,173.68,10.31551194]
[1730363851989,5.7557,173.74,173.7,10.31551194]
[1730363852987,10.31551194,173.76,173.7,10.31551194]
[1730363852988,5.7553,173.75,173.7,10.31551194]
[1730363853592,5.7553,173.75,173.71,10.31551194]
[1730363853800,16.06991194,173.78,173.72,10.31551194]
[1730363854132,5.7544,173.78,173.74,10.31551194]
[1730363854608,16.06921194,173.8,173.75,10.31551194]
[1730363854793,5.7537,173.8,173.75,10.31551194]
[1730363856412,5.7537,173.8,173.76,10.31551194]
[1730363856714,5.7537,173.8,173.75,23.776884]
[1730363856715,10.31551194,173.82,173.77,10.31551194]
[1730363857999,5.7534,173.81,173.77,10.31551194]
[1730363858315,5.7534,173.81,173.78,10.31551194]
[1730363858521,5.7527,173.83,173.79,10.31551194]
[1730363859191,10.31551194,173.82,173.77,10.31551194]
[1730363859623,5.7534,173.81,173.77,10.31551194]
[1730363863206,10.31551194,173.83,173.77,10.31551194]
[1730363863407,10.31551194,173.8,173.74,54.09239594]
[1730363864019,10.31551194,173.8,173.75,10.31551194]
[1730363865333,5.754,173.79,173.75,10.31551194]
[1730363865923,5.754,173.79,173.76,10.31551194]
[1730363866122,10.31551194,173.78,173.73,10.31551194]
[1730363866505,5.754,173.79,173.74,10.31551194]
[1730363866716,5.754,173.79,173.75,10.31551194]
[1730363867627,16.06951194,173.79,173.74,10.31551194]
[1730363868008,16.06951194,173.79,173.73,23.776884]
[1730363868009,5.754,173.79,173.75,10.31551194]
[1730363868228,5.754,173.79,173.76,10.31551194]
[1730363868405,15.0869,173.85,173.73,23.776884]
[1730363868614,5.7524,173.84,173.81,10.31551194]
[1730363869536,5.7524,173.84,173.8,10.31551194]
[1730363873934,16.06791194,173.84,173.79,10.31551194]
[1730363874106,10.31551194,173.81,173.77,23.776884]
[1730363874315,10.31551194,173.81,173.75,20.797]
[1730363874316,10.31551194,173.8,173.75,10.31551194]
[1730363874935,10.31551194,173.82,173.77,10.31551194]
[1730363875525,10.31551194,173.81,173.76,10.31551194]
[1730363876837,5.7537,173.8,173.76,10.31551194]
[1730363877251,15.0869,173.85,173.79,10.31551194]
[1730363877444,5.7523,173.85,173.81,10.31551194]
[1730363878242,5.7523,173.85,173.83,10.31551194]
[1730363878815,5.7514,173.87,173.83,10.31551194]
[1730363880223,5.7514,173.87,173.84,10.31551194]
[1730363880423,5.7514,173.87,173.84,16.0880245]
[1730363880742,5.7514,173.87,173.85,16.0880245]
[1730363881443,5.7514,173.87,173.84,16.0880245]
[1730363881944,5.7514,173.87,173.83,16.0880245]
[1730363883440,5.7514,173.87,173.84,16.0880245]
[1730363884523,16.0880245,173.89,173.84,16.0880245]
[1730363884728,5.751,173.88,173.84,16.0880245]
[1730363885221,21.8390245,173.88,173.83,16.0880245]
[1730363886243,16.0880245,173.86,173.81,23.776884]
[1730363886734,5.752,173.85,173.81,23.776884]
[1730363888026,21.8400245,173.85,173.81,23.776884]
[1730363888355,16.0880245,173.86,173.81,23.776884]
[1730363888650,16.0880245,173.85,173.8,39.8649085]
[1730363888946,16.0880245,173.84,173.8,23.776884]
[1730363889332,16.0880245,173.84,173.79,23.776884]
[1730363890145,16.0880245,173.84,173.8,23.776884]
[1730363890647,5.7527,173.83,173.8,23.776884]
[1730363891619,21.8407245,173.83,173.78,16.0880245]
[1730363891826,16.0880245,173.82,173.77,16.0880245]
[1730363892221,16.0880245,173.82,173.75,5.7553]
[1730363892222,16.0880245,173.81,173.76,16.0880245]
[1730363892646,5.7535,173.81,173.77,16.0880245]
[1730363892844,5.7535,173.81,173.78,23.776884]
[1730363894549,16.0880245,173.79,173.73,16.0880245]
[1730363894736,16.0880245,173.78,173.73,16.0880245]
[1730363894923,16.0880245,173.79,173.74,16.0880245]
[1730363895123,16.0880245,173.8,173.75,16.0880245]
[1730363896160,16.0880245,173.76,173.71,16.0880245]
[1730363896452,16.0880245,173.75,173.7,16.0880245]
[1730363896769,16.0880245,173.75,173.69,16.0880245]
[1730363897462,16.0880245,173.76,173.71,16.0880245]
[1730363898240,16.0880245,173.77,173.71,16.0880245]
[1730363898962,16.0880245,173.77,173.72,16.0880245]
[1730363899260,21.8424245,173.78,173.72,16.0880245]
[1730363899633,16.0880245,173.77,173.72,16.0880245]
[1730363899833,16.0880245,173.77,173.71,45.6216085]
[1730363900260,5.755,173.76,173.71,45.6216085]
[1730363901960,16.0880245,173.76,173.71,45.6216085]
[1730363902148,16.0880245,173.77,173.72,16.0880245]
[1730363902345,16.0880245,173.76,173.71,45.6216085]
[1730363902652,10.3110085,173.76,173.71,39.8445925]
[1730363902856,16.0662085,173.76,173.71,39.8445925]
[1730363903560,5.7552,173.76,173.71,39.8445925]
[1730363904441,16.0662085,173.76,173.7,10.3110085]
[1730363908838,5.7552,173.76,173.71,34.0878925]
[1730363909055,10.3110085,173.79,173.73,10.3110085]
[1730363909451,10.3110085,173.8,173.76,23.776884]
[1730363909641,31.1480085,173.83,173.77,10.3110085]
[1730363909841,10.3110085,173.84,173.78,10.3110085]
[1730363910150,10.3110085,173.83,173.78,10.3110085]
[1730363910552,10.3110085,173.82,173.78,23.776884]
[1730363910951,16.0639085,173.83,173.78,23.776884]
[1730363914550,16.0639085,173.83,173.78,34.0878925]
[1730363914869,10.3110085,173.84,173.79,10.3110085]
[1730363915082,10.3110085,173.85,173.8,10.3110085]
[1730363915446,16.0630085,173.86,173.8,10.3110085]
[1730363915763,16.0630085,173.86,173.81,10.3110085]
[1730363916272,20.0,173.87,173.82,30.4466085]
[1730363916669,16.0621085,173.88,173.82,30.4466085]
[1730363916670,5.7511,173.88,173.83,34.0878925]
[1730363916974,5.7511,173.88,173.84,10.3110085]
[1730363917176,16.0621085,173.88,173.83,23.776884]
[1730363918562,10.3110085,173.89,173.83,34.0878925]
[1730363919267,10.3110085,173.89,173.83,39.8404925]
[1730363919578,5.7501,173.91,173.83,39.8404925]
[1730363919579,10.3110085,173.88,173.83,39.8404925]
[1730363920875,5.7509,173.89,173.85,10.3110085]
[1730363921066,16.0615085,173.9,173.85,10.3110085]
[1730363921377,16.0612085,173.91,173.86,34.0878925]
[1730363921879,5.7502,173.91,173.87,10.3110085]
[1730363922547,5.7502,173.91,173.86,34.0878925]
[1730363922757,16.0612085,173.91,173.86,34.0878925]
[1730363922953,10.3110085,173.88,173.83,24.6928085]
[1730363923161,10.3110085,173.88,173.84,23.776884]
[1730363923356,10.3110085,173.89,173.84,23.776884]
[1730363924578,10.3110085,173.9,173.85,10.3110085]
[1730363924879,10.3110085,173.9,173.84,39.8401925]
[1730363925979,16.0617085,173.9,173.84,39.8401925]
[1730363926370,10.3110085,173.88,173.84,23.776884]
[1730363931786,10.3110085,173.86,173.81,10.3110085]
[1730363931964,10.3110085,173.86,173.82,23.776884]
[1730363932169,10.3110085,173.86,173.81,23.776884]
[1730363932480,10.3110085,173.86,173.8,24.6952085]
[1730363932667,10.3110085,173.85,173.8,24.6952085]
[1730363933004,10.3110085,173.86,173.8,30.4489085]
[1730363934082,5.752,173.85,173.8,30.4489085]
[1730363934392,10.3110085,173.86,173.81,23.776884]
[1730363934594,5.751,173.88,173.84,10.3110085]
[1730363935578,16.0620085,173.88,173.83,10.3110085]
[1730363935780,10.3110085,173.86,173.82,14.3826]
[1730363935977,10.3110085,173.86,173.83,23.776884]
[1730363936583,10.3110085,173.87,173.83,23.776884]
[1730363937597,10.3110085,173.86,173.83,23.776884]
[1730363940496,10.3110085,173.94,173.88,34.0878925]
[1730363940699,10.3110085,173.94,173.89,10.3110085]
[1730363940995,10.3110085,173.94,173.88,34.0878925]
[1730363941775,5.7494,173.93,173.88,34.0878925]
[1730363941982,5.7494,173.93,173.88,39.8388925]
[1730363943100,5.7494,173.93,173.89,10.3110085]
[1730363944102,25.7484,173.96,173.92,10.3110085]
[1730363944486,25.7484,173.96,173.93,10.3110085]
[1730363946501,5.7474,173.99,173.95,10.3110085]
[1730363946683,16.0584085,173.99,173.94,10.3110085]
[1730363947897,10.3110085,173.96,173.91,34.0878925]
[1730363948098,10.3110085,173.95,173.91,23.776884]
[1730363949303,5.7491,173.94,173.91,23.776884]
[1730363950195,10.3110085,173.94,173.91,23.776884]
[1730363950394,14.3686,173.99,173.86,14.3787]
[1730363950395,10.3110085,173.93,173.88,10.3110085]
[1730363950600,10.3110085,173.94,173.88,10.3110085]
[1730363950983,10.3110085,173.93,173.87,10.3110085]
[1730363951804,10.3110085,173.9,173.85,10.3110085]
[1730363952104,15.7591,173.94,173.83,5.7524]
[1730363952105,10.3110085,173.88,173.83,10.3110085]
[1730363952281,10.3110085,173.87,173.82,10.3110085]
[1730363952610,16.08994386,173.87,173.82,16.08994386]
[1730363953311,16.08994386,173.85,173.8,16.08994386]
[1730363953804,16.08994386,173.85,173.79,16.08994386]
[1730363954303,5.7524,173.84,173.79,16.08994386]
[1730363954484,5.7524,173.84,173.8,16.08994386]
[1730363954684,5.7524,173.84,173.79,16.08994386]
[1730363955013,5.7524,173.84,173.8,16.08994386]
[1730363956404,5.7524,173.84,173.79,16.08994386]
[1730363956605,5.7524,173.84,173.79,39.86682786]
[1730363956912,5.7524,173.84,173.8,16.08994386]
[1730363958111,5.7524,173.84,173.79,39.86682786]
[1730363959717,16.08994386,173.84,173.79,39.86682786]
[1730363959888,16.08994386,173.88,173.79,39.86682786]
[1730363960091,16.08994386,173.84,173.79,39.86682786]
[1730363961812,20.0,173.87,173.82,16.08994386]
[1730363962020,20.0,173.87,173.8,20.26349]
[1730363962021,20.0,173.87,173.83,16.08994386]
[1730363962202,16.08994386,173.88,173.84,23.776884]
[1730363962508,16.08994386,173.9,173.85,16.08994386]
[1730363962688,16.08994386,173.9,173.86,23.776884]
[1730363963301,16.08994386,173.89,173.85,23.776884]
[1730363964688,16.08994386,173.86,173.84,23.776884]
[1730363965104,16.08994386,173.86,173.83,23.776884]
[1730363965401,16.08994386,173.89,173.85,23.776884]
[1730363965803,16.08994386,173.9,173.85,39.86682786]
[1730363966609,16.08994386,173.9,173.85,45.61872786]
[1730363967014,16.08994386,173.91,173.85,45.61872786]
[1730363967799,16.08994386,173.91,173.86,16.08994386]
[1730363967995,16.08994386,173.91,173.87,23.776884]
[1730363968199,16.08994386,173.92,173.88,23.776884]
[1730363969891,21.83934386,173.93,173.88,23.776884]
[1730363970199,21.83934386,173.93,173.87,39.86682786]
[1730363970515,16.08994386,173.94,173.89,23.776884]
[1730363971028,16.08994386,173.93,173.89,23.776884]
[1730363972035,16.08994386,173.9,173.88,23.776884]
[1730363972728,16.08994386,173.91,173.87,23.776884]
[1730363974434,10.29243586,173.91,173.87,23.776884]
[1730363974628,10.29243586,173.91,173.86,34.06931986]
[1730363975909,10.29243586,173.92,173.86,34.06931986]
[1730363976311,10.29243586,173.91,173.86,23.776884]
[1730363976529,10.29243586,173.9,173.86,23.776884]
[1730363976738,10.29243586,173.9,173.84,10.29243586]
[1730363977444,10.29243586,173.9,173.85,10.29243586]
[1730363977809,16.04293586,173.9,173.85,10.29243586]
[1730363978235,16.04293586,173.9,173.86,23.776884]
[1730363979139,10.29243586,173.89,173.85,23.776884]
[1730363979341,10.29243586,173.9,173.85,23.776884]
[1730363980634,16.04303586,173.9,173.85,23.776884]
[1730363980838,16.04283586,173.9,173.85,34.06931986]
[1730363981160,10.29243586,173.89,173.85,23.776884]
[1730363982742,10.29243586,173.89,173.84,10.29243586]
[1730363982743,10.29243586,173.87,173.84,23.776884]
[1730363982946,10.29243586,173.87,173.83,23.776884]
[1730363983242,10.29243586,173.86,173.82,23.776884]
[1730363986148,10.29243586,173.87,173.82,34.06931986]
[1730363987439,16.04383586,173.88,173.82,34.06931986]
[1730363988149,10.29243586,173.87,173.82,34.06931986]
[1730363989547,16.04383586,173.87,173.82,34.06931986]
[1730363992357,10.29243586,173.85,173.81,23.776884]
[1730363993349,10.29243586,173.86,173.81,23.776884]